lending/lending_fUSD_20240128
["ID","MTS","AMOUNT","RATE_DAILY","PERIOD"]
[312902464,1706445045086,-650.30062788,0.00036526,6]
[312902465,1706445045097,-613.58552195,0.00036526,6]
[312902466,1706445045106,-1804.74237789,0.00036526,6]
[312902467,1706445045116,-1000.0,0.00036526,10]
[312902468,1706445045126,-2714.45272461,0.00036526,6]
[312902469,1706445045135,-500.0,0.00036526,6]
[312902470,1706445045145,-1000.0,0.00036526,10]
[312902471,1706445045155,-394.00112401,0.00036526,6]
[312902472,1706445045164,-268.27665496,0.00036526,6]
[312902473,1706445045173,-269.87567217,0.00036526,6]
[312902474,1706445045182,-1679.2269994,0.00036526,6]
[312902475,1706445045192,-1000.0,0.00036526,10]
[312902476,1706445045201,-1000.0,0.00036526,10]
[312902477,1706445045210,-500.0,0.00036589,2]
[312902478,1706445045220,-745.39,0.00036626,2]
[312902479,1706445045229,-2298.71558569,0.00036732,9]
[312902480,1706445045238,-500.0,0.000369,2]
[312902481,1706445045247,-500.0,0.000369,2]
[312902482,1706445045256,-500.0,0.000369,2]
[312902483,1706445045265,-500.0,0.000369,2]
[312902484,1706445045275,-500.0,0.000369,2]
[312902485,1706445045284,-500.0,0.000369,2]
[312902486,1706445045293,-500.0,0.000369,2]
[312902487,1706445045302,-500.0,0.000369,2]
[312902488,1706445045311,-500.0,0.000369,2]
[312902489,1706445045320,-500.0,0.000369,2]
[312902490,1706445045329,-500.0,0.000369,2]
[312902491,1706445045338,-500.0,0.000369,2]
[312902492,1706445045347,-500.0,0.000369,2]
[312902493,1706445045356,-500.0,0.000369,2]
[312902494,1706445045365,-500.0,0.000369,2]
[312902495,1706445045374,-500.0,0.000369,2]
[312902496,1706445045383,-500.0,0.000369,2]
[312902497,1706445045392,-500.0,0.000369,2]
[312902498,1706445045401,-500.0,0.000369,2]
[312902499,1706445045411,-500.0,0.000369,2]
[312902500,1706445045419,-500.0,0.000369,2]
[312902501,1706445045429,-500.0,0.000369,2]
[312902502,1706445045438,-500.0,0.000369,2]
[312902503,1706445045447,-500.0,0.000369,2]
[312902504,1706445045456,-500.0,0.000369,2]
[312902505,1706445045465,-500.0,0.000369,2]
[312902506,1706445045474,-500.0,0.000369,2]
[312902507,1706445045483,-500.0,0.000369,2]
[312902508,1706445045492,-500.0,0.000369,2]
[312902509,1706445045502,-500.0,0.000369,2]
[312902510,1706445045511,-500.0,0.000369,2]
[312902511,1706445045521,-500.0,0.000369,2]
[312902512,1706445045530,-500.0,0.000369,2]
[312902513,1706445045540,-500.0,0.000369,2]
[312902514,1706445045549,-500.0,0.000369,2]
[312902515,1706445045558,-500.0,0.000369,2]
[312902516,1706445045567,-500.0,0.000369,2]
[312902517,1706445045576,-500.0,0.000369,2]
[312902518,1706445045585,-500.0,0.000369,2]
[312902519,1706445045594,-500.0,0.000369,2]
[312902520,1706445045603,-500.0,0.000369,2]
[312902522,1706445045613,-500.0,0.000369,2]
[312902524,1706445045622,-500.0,0.000369,2]
[312902526,1706445045631,-500.0,0.000369,2]
[312902528,1706445045640,-500.0,0.000369,2]
[312902529,1706445045649,-407.84,0.000369,2]
[312902530,1706445045658,-500.0,0.000369,2]
[312902531,1706445045667,-311.19452843,0.00037,4]
[312902533,1706445045676,-1000.0,0.00037,6]
[312902534,1706445045685,-155.45954025,0.00037019,4]
[312902536,1706445045694,-1909.46555244,0.00037164,10]
[312902538,1706445045703,-174.68,0.000372,7]
[312902539,1706445045713,-330.76,0.000372,7]
[312902540,1706445045721,-745.39,0.00037203,2]
[312902541,1706445045730,-500.0,0.00037596,2]
[312902542,1706445045739,-454.17,0.00037743,10]
[312902543,1706445045749,-469.31,0.00037743,10]
[312902544,1706445045758,-409.54,0.00037753,2]
[312902545,1706445045767,-409.54,0.00037753,2]
[312902546,1706445045776,-409.54,0.00037753,2]
[312902547,1706445045785,-409.54,0.00037753,2]
[312902548,1706445045794,-409.54,0.00037753,2]
[312902549,1706445045803,-409.54,0.00037753,2]
[312902550,1706445045812,-409.54,0.00037753,2]
[312902551,1706445045821,-409.54,0.00037753,2]
[312902552,1706445045830,-409.54,0.00037753,2]
[312902553,1706445045839,-409.54,0.00037753,2]
[312902554,1706445045849,-409.54,0.00037753,2]
[312902555,1706445045858,-409.54,0.00037753,2]
[312902556,1706445045867,-409.54,0.00037753,2]
[312902557,1706445045877,-409.54,0.00037753,2]
[312902558,1706445045887,-409.54,0.00037753,2]
[312902559,1706445045896,-409.54,0.00037753,2]
[312902560,1706445045906,-409.54,0.00037753,2]
[312902561,1706445045915,-409.54,0.00037753,2]
[312902562,1706445045925,-409.54,0.00037753,2]
[312902563,1706445045935,-409.54,0.00037753,2]
[312902564,1706445045944,-409.54,0.00037753,2]
[312902565,1706445045954,-409.54,0.00037753,2]
[312902566,1706445045963,-409.54,0.00037753,2]
[312902567,1706445045972,-745.39,0.0003778,2]
[312902568,1706445045981,-11673.88,0.000378,3]
[312902569,1706445045990,-2518.9019917,0.00037874,2]
[312902570,1706445045999,-52419.8018914,0.00037874,2]
[312902571,1706445046009,-1305.6457348,0.00037874,2]
[312902572,1706445046018,-306.575788,0.000379,8]
[312902573,1706445046123,-306.575788,0.000379,8]
[312902574,1706445046134,-573.494742,0.000379,25]
[312902575,1706445046143,-541.71110366,0.000379,2]
[312902576,1706445046153,-1976.70903,0.000379,8]
[312902577,1706445046163,-358.25622,0.000379,2]
[312902578,1706445046173,-990.0,0.000379,30]
[312902579,1706445046182,-167.45662953,0.000379,30]
[312902580,1706445046191,-175521.19746575,0.000379,3]
[312902581,1706445046220,-7414.78985764,0.000379,3]
[312902582,1706445046231,-1850.72944375,0.000379,3]
[312902583,1706445047160,-1772.97059732,0.00026276,2]
[312902584,1706445047169,-150.0,0.00027599,2]
[312902585,1706445047179,-150.0,0.000276,2]
[312902586,1706445047188,-150.0,0.00027601,2]
[312902587,1706445047197,-150.0,0.00027603,2]
[312902588,1706445047206,-150.0,0.00027603,2]
[312902589,1706445047216,-150.0,0.00027604,2]
[312902590,1706445047226,-150.0,0.00027606,2]
[312902591,1706445047235,-150.0,0.00027608,2]
[312902592,1706445047245,-150.0,0.00027609,2]
[312902593,1706445047254,-150.0,0.00027609,2]
[312902594,1706445047263,-150.0,0.00027611,2]
[312902595,1706445047273,-150.0,0.00027615,2]
[312902596,1706445047282,-150.0,0.0002762,2]
[312902597,1706445047292,-150.0,0.00027621,2]
[312902598,1706445047301,-150.0,0.00027626,2]
[312902599,1706445047310,-150.0,0.00027627,2]
[312902600,1706445047319,-150.0,0.0002763,2]
[312902601,1706445047329,-150.0,0.00027637,2]
[312902602,1706445047338,-150.0,0.00027638,2]
[312902603,1706445047347,-89.06280504,0.00027648,2]
[312902604,1706445047359,-60.93719496,0.00027648,2]
[312902605,1706445047369,-150.0,0.0002765,2]
[312902606,1706445047378,-150.0,0.0002765,2]
[312902607,1706445047387,-150.0,0.0002765,2]
[312902608,1706445047397,-150.0,0.00027653,2]
[312902609,1706445047406,-150.0,0.00027657,2]
[312902610,1706445047415,-150.0,0.00027661,2]
[312902611,1706445047537,-150.0,0.00027662,2]
[312902612,1706445047558,-150.0,0.00027665,2]
[312902613,1706445047567,-150.0,0.00027666,2]
[312902614,1706445047577,-150.0,0.00027671,2]
[312902615,1706445047586,-118.10783004,0.00027672,2]
[312902616,1706445047597,-31.89216996,0.00027672,2]
[312902617,1706445047606,-150.0,0.00027678,2]
[312902618,1706445047617,-150.0,0.00027681,2]
[312902619,1706445047626,-150.0,0.00027682,2]
[312902620,1706445047636,-150.0,0.00027686,2]
[312902621,1706445047645,-150.0,0.00027686,2]
[312902622,1706445047654,-150.0,0.00027688,2]
[312902623,1706445047665,-150.0,0.00027699,2]
[312902624,1706445047674,-36.49183011,0.00027707,2]
[312902625,1706445047686,-113.50816989,0.00027707,2]
[312902626,1706445047695,-150.0,0.00027708,2]
[312902627,1706445047705,-150.0,0.0002771,2]
[312902628,1706445047714,-150.0,0.00027713,2]
[312902629,1706445047725,-150.0,0.00027715,2]
[312902630,1706445047735,-47.53056959,0.00027715,2]
[312902631,1706445047752,-102.46943041,0.00027715,2]
[312902632,1706445047761,-150.0,0.00027717,2]
[312902633,1706445047771,-150.0,0.00027719,2]
[312902635,1706445047780,-150.0,0.00027719,2]
[312902637,1706445047790,-150.0,0.00027722,2]
[312902639,1706445047799,-150.0,0.00027725,2]
[312902643,1706445047809,-150.0,0.00027734,2]
[312902645,1706445047821,-150.0,0.00027735,2]
[312902647,1706445047830,-150.0,0.00027738,2]
[312902649,1706445047840,-150.0,0.00027738,2]
[312902652,1706445047850,-150.0,0.00027743,2]
[312902655,1706445047859,-150.0,0.00027748,2]
[312902658,1706445047869,-150.0,0.00027748,2]
[312902661,1706445047879,-150.0,0.0002775,2]
[312902664,1706445047888,-150.0,0.00027754,2]
[312902667,1706445047898,-150.0,0.00027754,2]
[312902670,1706445047907,-150.0,0.00027758,2]
[312902673,1706445047917,-150.0,0.00027761,2]
[312902676,1706445047927,-150.0,0.00027761,2]
[312902678,1706445047937,-150.0,0.00027763,2]
[312902680,1706445047946,-150.0,0.00027763,2]
[312902682,1706445047955,-150.0,0.00027767,2]
[312902684,1706445047965,-150.0,0.00027767,2]
[312902686,1706445047975,-150.0,0.00027774,2]
[312902688,1706445047984,-95.02260999,0.00027776,2]
[312902710,1706445048840,-704.0,0.0002569,2]
[312902711,1706445048850,-1252.0,0.0002569,2]
[312902712,1706445048859,-742.35360851,0.00026275,2]
[312902713,1706445048871,-270.69639149,0.00026275,2]
[312902714,1706445048881,-54.97739001,0.00027776,2]
[312902715,1706445048890,-150.0,0.00027779,2]
[312902716,1706445048899,-150.0,0.0002778,2]
[312902717,1706445048909,-150.0,0.00027781,2]
[312902718,1706445048919,-150.0,0.00027783,2]
[312902719,1706445048928,-150.0,0.00027789,2]
[312902720,1706445048936,-150.0,0.00027789,2]
[312902721,1706445048946,-150.0,0.00027793,2]
[312902722,1706445048955,-150.0,0.00027795,2]
[312902723,1706445048965,-150.0,0.00027795,2]
[312902724,1706445048974,-150.0,0.00027798,2]
[312902725,1706445048984,-150.0,0.00027801,2]
[312902726,1706445048993,-150.0,0.00027803,2]
[312902727,1706445049002,-122.78702791,0.00027804,2]
[312902728,1706445049014,-27.21297209,0.00027804,2]
[312902729,1706445049024,-150.0,0.00027806,2]
[312902730,1706445049033,-150.0,0.00027809,2]
[312902731,1706445049044,-150.0,0.0002781,2]
[312902732,1706445049055,-150.0,0.00027814,2]
[312902733,1706445049064,-150.0,0.00027825,2]
[312902734,1706445049074,-150.0,0.00027826,2]
[312902735,1706445049083,-150.0,0.00027831,2]
[312902736,1706445049092,-150.0,0.00027832,2]
[312902737,1706445049101,-150.0,0.00027832,2]
[312902738,1706445049111,-150.0,0.00027833,2]
[312902739,1706445049120,-150.0,0.00027838,2]
[312902740,1706445049130,-150.0,0.00027839,2]
[312902741,1706445049139,-150.0,0.00027842,2]
[312902742,1706445049148,-150.0,0.00027846,2]
[312902743,1706445049157,-150.0,0.00027849,2]
[312902744,1706445049167,-150.0,0.00027855,2]
[312902745,1706445049177,-150.0,0.00027859,2]
[312902746,1706445049186,-150.0,0.00027861,2]
[312902747,1706445049195,-150.0,0.00027869,2]
[312902748,1706445049204,-200.86162821,0.00028,2]
[312902749,1706445049214,-113.3759597,0.00033808,7]
[312902750,1706445049226,-264.1300403,0.00033808,7]
[312902751,1706445049235,-283.4899597,0.00033808,2]
[312902752,1706445049267,-1046.992628,0.0002869,2]
[312902753,1706445049279,-205.007372,0.0002869,2]
[312902754,1706445049288,-11.5500403,0.00033808,2]
[312902755,1706445049298,-150.0,0.00035355,2]
[312902756,1706445049307,-150.0,0.00035364,2]
[312902757,1706445049316,-150.0,0.00035374,2]
[312902758,1706445049326,-150.0,0.00035423,2]
[312902759,1706445049335,-150.0,0.00035429,2]
[312902760,1706445049345,-150.0,0.00035429,2]
[312902761,1706445049354,-150.0,0.00035447,2]
[312902762,1706445049363,-150.0,0.00035474,2]
[312902763,1706445049372,-150.0,0.00035474,2]
[312902764,1706445049381,-150.0,0.00035483,2]
[312902765,1706445049391,-150.0,0.00035502,2]
[312902766,1706445049400,-150.0,0.00035503,2]
[312902767,1706445049410,-150.0,0.00035505,2]
[312902768,1706445049419,-150.0,0.0003553,2]
[312902769,1706445049428,-150.0,0.00035545,2]
[312902770,1706445049437,-150.0,0.00035556,2]
[312902771,1706445049447,-150.0,0.00035577,2]
[312902772,1706445049456,-297.39021764,0.00035612,2]
[312902773,1706445049465,-150.0,0.00035615,2]
[312902774,1706445049474,-150.0,0.00035616,2]
[312902775,1706445049483,-495.0,0.00036526,5]
[312902776,1706445049492,-1000.0,0.00036526,10]
[312902777,1706445049501,-202.5022857,0.00036655,27]
[312902778,1706445049510,-302940.26832341,0.000379,3]
[312902779,1706445049522,-6224.48612401,0.000379,3]
[312902780,1706445049532,-572.17654478,0.000379,3]
[312902781,1706445049547,-1028.72698525,0.000379,3]
[312902782,1706445049558,-491.62526748,0.000379,3]
[312902784,1706445282546,-1016.8091,0.00022685,2]
[312902785,1706445282567,-300.0,0.00022897,2]
[312902786,1706445282588,-683.1909,0.00022898,2]
[312902787,1706445286318,-160.35656131,0.00022797,2]
[312902788,1706445286340,-1919.64343869,0.00022898,2]
[312902794,1706446232082,-571.30269636,0.00022683,2]
[312902795,1706446232094,-658.07385045,0.00022683,2]
[312902796,1706446232103,-214.0,0.00022684,2]
[312902797,1706446232113,-7586.06445889,0.00022898,2]
[312902798,1706446232122,-235.32325514,0.00022898,2]
[312902799,1706446232132,-312.8751174,0.00022898,2]
[312902800,1706446232142,-500.0,0.00022898,2]
[312902801,1706446232151,-1038.64616565,0.00022898,2]
[312902802,1706446232160,-5195.8654879,0.00022898,2]
[312902803,1706446232169,-5173.37712093,0.00022898,2]
[312902804,1706446232178,-2645.7993,0.000229,2]
[312902805,1706446232188,-1848.8027,0.000229,2]
[312902806,1706446232197,-1149.0,0.000237,2]
[312902807,1706446232206,-184.05,0.00024811,2]
[312902808,1706446232216,-534.91560831,0.00025,2]
[312902809,1706446232225,-550.0,0.00025,3]
[312902810,1706446232234,-1903.74995284,0.00025,2]
[312902811,1706446232243,-304.11862422,0.00025,2]
[312902812,1706446232253,-1587.22750165,0.00025,2]
[312902813,1706446232262,-935.55189282,0.00025,2]
[312902814,1706446232270,-2487.43,0.00025683,2]
[312902815,1706446232279,-499.99,0.00025686,2]
[312902816,1706446232288,-6062.08,0.00025687,2]
[312902817,1706446232297,-325.12,0.00025687,2]
[312902818,1706446232306,-4307.93,0.00026591,2]
[312902819,1706446232315,-600.0,0.00027,3]
[312902820,1706446232325,-636.495,0.0002718,2]
[312902821,1706446232334,-1360.0,0.0002718,2]
[312902822,1706446232344,-210.843,0.0002718,2]
[312902823,1706446232353,-778.489,0.0002718,2]
[312902824,1706446232362,-837.0,0.0002718,2]
[312902825,1706446232372,-1252.0,0.0002718,2]
[312902826,1706446232381,-1241.129,0.0002718,2]
[312902827,1706446232391,-215.0,0.0002718,2]
[312902828,1706446232401,-1939.0,0.0002718,2]
[312902829,1706446232414,-316.0,0.0002718,2]
[312902830,1706446232423,-2912.0,0.0002718,2]
[312902831,1706446232549,-2279.0,0.0002718,2]
[312902832,1706446232560,-3628.727,0.0002718,2]
[312902833,1706446232569,-746.42,0.00027397,2]
[312902834,1706446232579,-152.8,0.00027397,2]
[312902835,1706446232588,-746.42,0.0002783,2]
[312902836,1706446232597,-19171.52536403,0.000279,2]
[312902837,1706446232606,-152.8,0.0002803,2]
[312902838,1706446232615,-746.42,0.00028262,2]
[312902839,1706446232624,-152.8,0.00028662,2]
[312902840,1706446232633,-746.42,0.00028695,2]
[312902841,1706446232643,-214.0,0.00028903,11]
[312902842,1706446232652,-746.42,0.00029128,2]
[312902843,1706446232661,-152.8,0.00029294,2]
[312902844,1706446232670,-746.42,0.0002956,2]
[312902845,1706446232679,-152.8,0.00029926,2]
[312902846,1706446232688,-746.42,0.00029993,2]
[312902847,1706446232697,-583.92214289,0.0003,2]
[312902848,1706446232706,-155.0,0.0003,2]
[312902849,1706446232715,-3000.0,0.0003,2]
[312902850,1706446232726,-162.24,0.00030008,2]
[312902851,1706446232735,-3000.0,0.0003001,2]
[312902852,1706446232743,-3000.0,0.0003002,2]
[312902853,1706446232752,-3000.0,0.0003003,2]
[312902854,1706446232761,-4551.753787,0.0003004,2]
[312902855,1706446232771,-1252.0,0.0003018,2]
[312902856,1706446232779,-1233.0,0.0003018,2]
[312902857,1706446232788,-215.0,0.0003018,2]
[312902858,1706446232798,-1137.585,0.0003018,2]
[312902859,1706446232807,-2728.421,0.0003018,2]
[312902860,1706446232816,-2279.0,0.0003018,2]
[312902861,1706446232825,-746.42,0.00030425,2]
[312902862,1706446232835,-152.8,0.00030558,2]
[312902863,1706446232844,-150.0,0.00030689,2]
[312902864,1706446232853,-746.42,0.00030858,2]
[312902865,1706446232863,-250.0,0.00030993,2]
[312902866,1706446232872,-9019.28,0.00030993,2]
[312902867,1706446232881,-152.8,0.00031191,2]
[312902868,1706446232892,-162.81,0.00031193,2]
[312902869,1706446232901,-607.05,0.00031265,2]
[312902870,1706446232911,-250.0,0.00031272,2]
[312902871,1706446232921,-746.42,0.0003129,2]
[312902872,1706446232930,-242.13,0.00031378,2]
[312902873,1706446232939,-607.05,0.00031445,2]
[312902874,1706446232949,-500.0,0.00031513,2]
[312902875,1706446232959,-6533.09,0.00031527,2]
[312902876,1706446232968,-1402.01,0.00031552,2]
[312902877,1706446232978,-162.81,0.00031599,2]
[312902878,1706446232987,-388.39343656,0.000316,2]
[312902879,1706446233186,-611.60656344,0.000316,2]
[312902880,1706446233195,-86.0274179,0.00031626,2]
[312902881,1706446233210,-521.0225821,0.00031626,2]
[312902882,1706446233220,-337.3153022,0.00031689,4]
[312902883,1706446233229,-404.6923566,0.00031689,4]
[312902884,1706446233238,-746.42,0.00031723,2]
[312902885,1706446233247,-607.05,0.00031806,2]
[312902886,1706446233257,-152.8,0.00031823,2]
[312902887,1706446233267,-607.05,0.00031987,2]
[312902888,1706446233276,-858.33591374,0.00032,2]
[312902889,1706446233286,-162.81,0.00032006,2]
[312902890,1706446233295,-166.68,0.00032041,2]
[312902891,1706446233304,-746.42,0.00032156,2]
[312902892,1706446233314,-607.05,0.00032168,2]
[312902893,1706446233323,-185.74,0.00032212,2]
[312902894,1706446233332,-311.50520017,0.00032215,2]
[312902895,1706446233341,-162.24,0.00032272,2]
[312902896,1706446233351,-607.05,0.00032348,2]
[312902897,1706446233360,-162.81,0.00032412,2]
[312902898,1706446233369,-152.8,0.00032455,2]
[312902899,1706446233378,-607.05,0.00032529,2]
[312902900,1706446233388,-746.42,0.00032588,2]
[312902901,1706446233398,-607.05,0.0003271,2]
[312902902,1706446233410,-494.01,0.00032802,2]
[312902903,1706446233419,-162.81,0.00032818,2]
[312902904,1706446233430,-607.05,0.0003289,2]
[312902905,1706446233439,-151.661,0.00032967,7]
[312902906,1706446233449,-746.42,0.00033021,2]
[312902907,1706446233458,-152.8,0.00033087,2]
[312902908,1706446233466,-864.114,0.0003318,2]
[312902909,1706446233475,-323.95397622,0.0003318,2]
[312902910,1706446233488,-909.04602378,0.0003318,2]
[312902911,1706446233497,-215.0,0.0003318,2]
[312902912,1706446233506,-2273.0,0.0003318,2]
[312902913,1706446233515,-746.42,0.00033453,2]
[312902914,1706446233523,-167.81,0.00033635,2]
[312902915,1706446233532,-152.8,0.0003372,2]
[312902916,1706446233542,-746.42,0.00033886,2]
[312902917,1706446233551,-171.03,0.00034057,2]
[312902918,1706446233559,-482.732,0.00034154,2]
[312902919,1706446233568,-1000.0,0.00034248,2]
[312902920,1706446233578,-2149.26,0.00034254,2]
[312902921,1706446233588,-155.08,0.00034275,2]
[312902922,1706446233597,-746.42,0.00034318,2]
[312902923,1706446233607,-152.8,0.00034352,2]
[312902924,1706446233616,-180.0,0.00034387,2]
[312902925,1706446233626,-494.01,0.00034446,2]
[312902926,1706446233635,-162.24,0.00034536,2]
[312902927,1706446233645,-746.42,0.00034751,2]
[312902928,1706446233655,-175.27,0.000348,2]
[312902929,1706446233664,-175.27,0.000348,2]
[312902930,1706446233673,-175.27,0.000348,2]
[312902931,1706446233682,-175.27,0.000348,2]
[312902932,1706446233691,-175.27,0.000348,2]
[312902933,1706446233700,-175.27,0.000348,2]
[312902934,1706446233709,-175.27,0.000348,2]
[312902935,1706446233718,-175.27,0.000348,2]
[312902936,1706446233727,-175.27,0.000348,2]
[312902937,1706446233736,-175.27,0.000348,2]
[312902938,1706446233745,-175.27,0.000348,2]
[312902939,1706446233755,-175.27,0.000348,2]
[312902940,1706446233764,-175.27,0.000348,2]
[312902941,1706446233774,-80.98225804,0.000348,2]
[312902942,1706446233786,-94.28774196,0.000348,2]
[312902943,1706446233795,-175.27,0.000348,2]
[312902944,1706446233804,-175.27,0.000348,2]
[312902945,1706446233814,-5.17225804,0.000348,2]
[312902946,1706446233825,-170.09774196,0.000348,2]
[312902947,1706446233834,-175.27,0.000348,2]
[312902948,1706446233843,-175.27,0.000348,2]
[312902949,1706446233852,-175.27,0.000348,2]
[312902950,1706446233861,-152.8,0.00034984,2]
[312902951,1706446233870,-5000.0,0.00035,3]
[312902952,1706446233880,-3000.0,0.00035,11]
[312902953,1706446233889,-3000.0,0.0003501,11]
[312902954,1706446233908,-657.06776078,0.0003502,11]
[312902955,1706446233922,-858.16390953,0.0003502,11]
[312902956,1706446234009,-426.36,0.0003502,11]
[312902959,1706446238187,-3277.58764379,0.0003502,11]
[312902960,1706446238199,-296.5573239,0.0003502,11]
[312902961,1706446238209,-409.61679941,0.00035023,5]
[312902962,1706446238230,-1395.73320059,0.00035023,5]
[312902963,1706446238240,-151.38920551,0.00035055,2]
[312902964,1706446238250,-214.0,0.00035123,21]
[312902965,1706446238258,-746.42,0.00035184,2]
[312902966,1706446238268,-1790.2,0.00035197,5]
[312902967,1706446238278,-500.0,0.00035498,2]
[312902968,1706446238287,-746.42,0.00035616,2]
[312902969,1706446238297,-152.8,0.00035616,2]
[312902970,1706446238310,-335.29757448,0.00035699,4]
[312902971,1706446238321,-1838.11,0.00035736,5]
[312902972,1706446238330,-1803.94,0.00035736,5]
[312902973,1706446238340,-344.31402392,0.00035736,5]
[312902974,1706446238357,-501.7,0.00035736,5]
[312902975,1706446238369,-985.65597608,0.00035736,5]
[312902976,1706446238379,-1784.33,0.00035744,5]
[312902977,1706446238389,-250.67798517,0.00035755,5]
[312902978,1706446238403,-1594.93201483,0.00035755,5]
[312902979,1706446238417,-1800.66,0.00035767,5]
[312902980,1706446238426,-1828.23,0.00035783,5]
[312902981,1706446238435,-1814.41,0.00035802,5]
[312902982,1706446238444,-1832.31,0.00035826,5]
[312902983,1706446238454,-1802.3,0.00035856,5]
[312902985,1706446238463,-1490.0,0.000359,12]
[312902987,1706446238472,-3280.10169416,0.00036,30]
[312902988,1706446238483,-155.45954025,0.00036,4]
[312902989,1706446238493,-434.66039764,0.00036005,2]
[312902990,1706446238503,-494.01,0.0003609,2]
[312902991,1706446238512,-1233.0,0.0003618,2]
[312902992,1706446238521,-167.0,0.00036407,2]
[312902993,1706446238531,-500.0,0.00036464,2]
[312902994,1706446238541,-200.0,0.00036464,5]
[312902995,1706446238550,-200.0,0.00036464,2]
[312902996,1706446238559,-6357.51497472,0.00036526,6]
[312902997,1706446238568,-13425.12123503,0.00036526,6]
[312902998,1706446238578,-737.24876559,0.00036526,6]
[312902999,1706446238588,-380.47554047,0.00036526,6]
[312903000,1706446238597,-190.23777023,0.00036526,6]
[312903001,1706446238606,-821.64595856,0.00036526,6]
[312903002,1706446238615,-895.89984794,0.00036526,6]
[312903003,1706446238625,-177.30050581,0.00036526,6]
[312903004,1706446238634,-253.00480607,0.00036526,6]
[312903005,1706446238648,-1000.0,0.00036526,10]
[312903006,1706446238657,-162.24,0.00036799,2]
[312903007,1706446238667,-500.0,0.000369,2]
[312903008,1706446238677,-500.0,0.000369,2]
[312903009,1706446238686,-500.0,0.000369,2]
[312903010,1706446238696,-500.0,0.000369,2]
[312903011,1706446238705,-500.0,0.000369,2]
[312903012,1706446238714,-500.0,0.000369,2]
[312903013,1706446238724,-500.0,0.000369,2]
[312903014,1706446238734,-500.0,0.000369,2]
[312903015,1706446238743,-500.0,0.000369,2]
[312903016,1706446238752,-500.0,0.000369,2]
[312903017,1706446238761,-500.0,0.000369,2]
[312903018,1706446238770,-500.0,0.000369,2]
[312903019,1706446238779,-500.0,0.000369,2]
[312903020,1706446238788,-500.0,0.000369,2]
[312903021,1706446238798,-500.0,0.000369,2]
[312903022,1706446238807,-500.0,0.000369,2]
[312903023,1706446238816,-407.84,0.000369,2]
[312903024,1706446238825,-500.0,0.000369,2]
[312903025,1706446238834,-500.0,0.000369,2]
[312903026,1706446238844,-500.0,0.000369,2]
[312903027,1706446238854,-500.0,0.000369,2]
[312903028,1706446238864,-500.0,0.000369,2]
[312903029,1706446238873,-500.0,0.000369,2]
[312903030,1706446238883,-500.0,0.000369,2]
[312903031,1706446238894,-500.0,0.000369,2]
[312903032,1706446238903,-500.0,0.000369,2]
[312903033,1706446238914,-500.0,0.000369,2]
[312903034,1706446238924,-500.0,0.000369,2]